fUST/lending_fUST_20240312
["ID","MTS","AMOUNT","RATE_DAILY","PERIOD"]
[318346813,1710187834160,-800.36,0.00015068,2]
[318346814,1710187834170,-800.36,0.00015068,2]
[318346815,1710187834182,-800.36,0.00015068,2]
[318346816,1710187834193,-800.36,0.00015068,2]
[318346817,1710187834207,-800.36,0.00015068,2]
[318346818,1710187834218,-800.36,0.00015068,2]
[318346819,1710187834231,-800.49514918,0.00015068,2]
[318346820,1710187834242,-500.0,0.00015068,2]
[318346821,1710187834253,-500.0,0.00015068,2]
[318346822,1710187834263,-500.0,0.00015068,2]
[318346823,1710187834274,-500.0,0.00015068,2]
[318346824,1710187834391,-500.0,0.00015068,2]
[318346825,1710187834405,-500.0,0.00015068,2]
[318346826,1710187834414,-500.0,0.00015068,2]
[318346827,1710187834424,-297.3,0.00015068,2]
[318346828,1710187834436,-502.9709429,0.00015068,2]
[318346829,1710187834445,-500.0,0.00015068,2]
[318346830,1710187834454,-500.0,0.00015068,2]
[318346831,1710187834464,-500.54411005,0.00015068,2]
[318346832,1710187834473,-518.38433706,0.00015068,2]
[318346833,1710187834482,-500.0,0.00015068,2]
[318346834,1710187834491,-203.53173367,0.00015068,2]
[318346835,1710187834500,-501.94843205,0.00015068,2]
[318346836,1710187834510,-543.54,0.00015068,2]
[318346837,1710187834519,-543.54,0.00015068,2]
[318346838,1710187834528,-543.54,0.00015068,2]
[318346839,1710187834537,-543.54,0.00015068,2]
[318346840,1710187834546,-543.54,0.00015068,2]
[318346841,1710187834555,-543.54,0.00015068,2]
[318346842,1710187834566,-543.54,0.00015068,2]
[318346843,1710187834575,-543.54,0.00015068,2]
[318346844,1710187834584,-543.54,0.00015068,2]
[318346845,1710187834594,-543.54,0.00015068,2]
[318346846,1710187834602,-543.54,0.00015068,2]
[318346847,1710187834612,-543.54,0.00015068,2]
[318346848,1710187834621,-543.54,0.00015068,2]
[318346849,1710187834631,-543.54,0.00015068,2]
[318346850,1710187834640,-543.54,0.00015068,2]
[318346851,1710187834649,-543.54,0.00015068,2]
[318346852,1710187834658,-543.54,0.00015068,2]
[318346853,1710187834667,-543.54,0.00015068,2]
[318346854,1710187834676,-543.54,0.00015068,2]
[318346855,1710187834685,-543.54,0.00015068,2]
[318346856,1710187834694,-543.54,0.00015068,2]
[318346857,1710187834703,-543.54,0.00015068,2]
[318346858,1710187834712,-543.54,0.00015068,2]
[318346859,1710187834721,-543.66058511,0.00015068,2]
[318346860,1710187834730,-500.0,0.00015068,2]
[318346861,1710187834739,-500.0,0.00015068,2]
[318346862,1710187834749,-427.4502725,0.00015068,2]
[318346863,1710187834757,-500.0,0.00015068,2]
[318346864,1710187834766,-174.72098227,0.00015068,2]
[318346913,1710187839877,-285.29888257,0.00014087,2]
[318346914,1710187839890,-35.14334969,0.00014087,2]
[318346915,1710187839900,-215.24541716,0.00015068,2]
[318346916,1710187839912,-110.03360057,0.00015068,2]
[318346917,1710187839921,-500.0,0.00015068,2]
[318346918,1710187839932,-500.0,0.00015068,2]
[318346921,1710187839942,-500.0,0.00015068,2]
[318346923,1710187839951,-500.0,0.00015068,2]
[318346926,1710187839960,-500.0,0.00015068,2]
[318346928,1710187839969,-602.80235981,0.00015068,2]
[318346929,1710187839978,-742.01,0.00015068,2]
[318346930,1710187839988,-742.01,0.00015068,2]
[318346931,1710187839996,-603.34360696,0.00015068,2]
[318346953,1710187843039,-260.84462297,0.00015067,2]
[318346955,1710187843048,-138.66639304,0.00015068,2]
[318346957,1710187843057,-742.01,0.00015068,2]
[318346959,1710187843067,-742.01,0.00015068,2]
[318346961,1710187843076,-742.01,0.00015068,2]
[318346963,1710187843085,-742.01,0.00015068,2]
[318346965,1710187843096,-742.01,0.00015068,2]
[318346968,1710187843106,-742.01,0.00015068,2]
[318346971,1710187843116,-742.01,0.00015068,2]
[318346974,1710187843126,-742.01,0.00015068,2]
[318346976,1710187843135,-742.01,0.00015068,2]
[318346978,1710187843145,-742.01,0.00015068,2]
[318346980,1710187843155,-742.01,0.00015068,2]
[318346982,1710187843164,-742.01,0.00015068,2]
[318346984,1710187843173,-742.01,0.00015068,2]
[318346986,1710187843182,-742.01,0.00015068,2]
[318346988,1710187843191,-742.01,0.00015068,2]
[318346990,1710187843201,-742.01,0.00015068,2]
[318346992,1710187843211,-742.01,0.00015068,2]
[318346994,1710187843220,-742.01,0.00015068,2]
[318346996,1710187843229,-742.01,0.00015068,2]
[318346998,1710187843238,-742.01,0.00015068,2]
[318347000,1710187843247,-742.15601081,0.00015068,2]
[318347002,1710187843256,-1424.4,0.00015068,2]
[318347004,1710187843265,-1424.4,0.00015068,2]
[318347006,1710187843275,-1424.4,0.00015068,2]
[318347008,1710187843286,-1004.97980074,0.00015068,2]
[318347010,1710187843298,-419.42019926,0.00015068,2]
[318347012,1710187843307,-1424.4,0.00015068,2]
[318347014,1710187843317,-1424.4,0.00015068,2]
[318347016,1710187843326,-110.13841392,0.00015068,2]
[318348011,1710187853130,-290.58321503,0.00015066,2]
[318348015,1710187853160,-1950.95817719,0.00015067,2]
[318348019,1710187853192,-502.05694681,0.00015068,2]
[318348024,1710187853222,-500.0,0.00015068,2]
[318348028,1710187853253,-521.592,0.00015068,2]
[318348032,1710187853286,-500.0,0.00015068,2]
[318348037,1710187853318,-500.0,0.00015068,2]
[318348041,1710187853350,-500.0,0.00015068,2]
[318348045,1710187853382,-287.122635,0.00015068,2]
[318348050,1710187853413,-500.0,0.00015068,2]
[318348054,1710187853446,-500.0,0.00015068,2]
[318348058,1710187853476,-500.0,0.00015068,2]
[318348062,1710187853508,-500.0,0.00015068,2]
[318348067,1710187853542,-500.0,0.00015068,2]
[318348071,1710187853573,-500.0,0.00015068,2]
[318348076,1710187853604,-500.0,0.00015068,2]
[318348080,1710187853637,-500.0,0.00015068,2]
[318348085,1710187853668,-500.0,0.00015068,2]
[318348097,1710187853781,-537.35528985,0.00015068,2]
[318348102,1710187853814,-500.0,0.00015068,2]
[318348106,1710187853844,-500.0,0.00015068,2]
[318348111,1710187853877,-500.0,0.00015068,2]
[318348115,1710187853907,-500.0,0.00015068,2]
[318348120,1710187853941,-500.0,0.00015068,2]
[318348124,1710187853973,-500.0,0.00015068,2]
[318348128,1710187854005,-500.0,0.00015068,2]
[318348133,1710187854036,-500.0,0.00015068,2]
[318348137,1710187854068,-500.0,0.00015068,2]
[318348142,1710187854105,-500.0,0.00015068,2]
[318348147,1710187854137,-500.0,0.00015068,2]
[318348151,1710187854170,-177.40602568,0.00015068,2]
[318348156,1710187854201,-221.241876,0.00015068,2]
[318348160,1710187854233,-500.0,0.00015068,2]
[318348164,1710187854265,-500.0,0.00015068,2]
[318348168,1710187854298,-500.0,0.00015068,2]
[318348172,1710187854329,-500.0,0.00015068,2]
[318348176,1710187854360,-500.0,0.00015068,2]
[318348181,1710187854392,-500.0,0.00015068,2]
[318348185,1710187854423,-500.0,0.00015068,2]
[318348190,1710187854455,-500.0,0.00015068,2]
[318348194,1710187854485,-500.0,0.00015068,2]
[318348199,1710187854516,-500.0,0.00015068,2]
[318348203,1710187854546,-5033.23,0.00015068,2]
[318348207,1710187854577,-500.0,0.00015068,2]
[318348211,1710187854609,-5033.23,0.00015068,2]
[318348216,1710187854643,-5033.23,0.00015068,2]
[318348220,1710187854675,-500.0,0.00015068,2]
[318348224,1710187854706,-5033.23,0.00015068,2]
[318348228,1710187854737,-186.50191474,0.00015068,2]
[318348232,1710187854769,-5033.23,0.00015068,2]
[318348245,1710187854886,-5033.23,0.00015068,2]
[318348249,1710187854918,-5033.23,0.00015068,2]
[318348253,1710187854950,-5033.23,0.00015068,2]
[318348258,1710187854982,-5033.23,0.00015068,2]
[318348262,1710187855013,-5033.23,0.00015068,2]
[318348267,1710187855044,-5033.23,0.00015068,2]
[318348271,1710187855075,-500.0,0.00015068,2]
[318348275,1710187855106,-5033.23,0.00015068,2]
[318348280,1710187855137,-500.0,0.00015068,2]
[318348284,1710187855168,-5033.23,0.00015068,2]
[318348289,1710187855198,-500.0,0.00015068,2]
[318348293,1710187855229,-500.0,0.00015068,2]
[318348297,1710187855260,-500.0,0.00015068,2]
[318348301,1710187855290,-5033.23,0.00015068,2]
[318348306,1710187855322,-500.0,0.00015068,2]
[318348310,1710187855360,-5033.23,0.00015068,2]
[318348314,1710187855394,-500.0,0.00015068,2]
[318348315,1710187855426,-5033.23,0.00015068,2]
[318348316,1710187855463,-568.74069441,0.00015068,2]
[318348317,1710187855497,-5033.23,0.00015068,2]
[318348320,1710187855528,-5033.23,0.00015068,2]
[318348325,1710187855560,-5033.23,0.00015068,2]
[318348329,1710187855591,-5033.23,0.00015068,2]
[318348334,1710187855623,-5033.23,0.00015068,2]
[318348338,1710187855654,-5033.23,0.00015068,2]
[318348342,1710187855685,-5033.23,0.00015068,2]
[318348347,1710187855716,-5033.39868431,0.00015068,2]
[318348351,1710187855752,-30165.02,0.00015068,2]
[318348357,1710187855794,-30165.02,0.00015068,2]
[318348362,1710187855832,-30165.02,0.00015068,2]
[318348367,1710187855871,-30165.02,0.00015068,2]
[318348372,1710187855908,-30165.02,0.00015068,2]
[318348377,1710187855945,-30165.02,0.00015068,2]
[318348382,1710187855981,-30165.02,0.00015068,2]
[318348387,1710187856017,-500.0,0.00015068,2]
[318348392,1710187856053,-500.0,0.00015068,2]
[318348397,1710187856089,-30165.02,0.00015068,2]
[318348402,1710187856128,-500.0,0.00015068,2]
[318348407,1710187856164,-30165.02,0.00015068,2]
[318348411,1710187856202,-500.0,0.00015068,2]
[318348417,1710187856248,-30165.02,0.00015068,2]
[318348422,1710187856291,-30165.02,0.00015068,2]
[318348427,1710187856329,-500.0,0.00015068,2]
[318348432,1710187856367,-30165.02,0.00015068,2]
[318348437,1710187856406,-30165.02,0.00015068,2]
[318348442,1710187856447,-30165.02,0.00015068,2]
[318348447,1710187856484,-1766.96,0.00015068,2]
[318348452,1710187856520,-30165.02,0.00015068,2]
[318348457,1710187856557,-1766.96,0.00015068,2]
[318348462,1710187856593,-30165.02,0.00015068,2]
[318348467,1710187856629,-1766.96,0.00015068,2]
[318348472,1710187856666,-30165.02,0.00015068,2]
[318348476,1710187856699,-1766.96,0.00015068,2]
[318348481,1710187856734,-30165.02,0.00015068,2]
[318348503,1710187856930,-1766.96,0.00015068,2]
[318348507,1710187856963,-30165.02,0.00015068,2]
[318348512,1710187856998,-30165.02,0.00015068,2]
[318348516,1710187857030,-1766.96,0.00015068,2]
[318348521,1710187857061,-1766.96,0.00015068,2]
[318348525,1710187857093,-30165.02,0.00015068,2]
[318348529,1710187857125,-1766.96,0.00015068,2]
[318348534,1710187857156,-1766.96,0.00015068,2]
[318348538,1710187857187,-30165.02,0.00015068,2]
[318348542,1710187857217,-1766.96,0.00015068,2]
[318348547,1710187857249,-30165.02,0.00015068,2]
[318348551,1710187857280,-1766.96,0.00015068,2]
[318348556,1710187857313,-30165.13457539,0.00015068,2]
[318348560,1710187857344,-1766.96,0.00015068,2]
[318348564,1710187857376,-1766.96,0.00015068,2]
[318348568,1710187857405,-1766.96,0.00015068,2]
[318348573,1710187857435,-1766.96,0.00015068,2]
[318348577,1710187857465,-1766.96,0.00015068,2]
[318348581,1710187857496,-1766.96,0.00015068,2]
[318348585,1710187857526,-1766.96,0.00015068,2]
[318348590,1710187857556,-1766.96,0.00015068,2]
[318348594,1710187857587,-1766.96,0.00015068,2]
[318348598,1710187857618,-1766.96,0.00015068,2]
[318348602,1710187857651,-1766.96,0.00015068,2]
[318348607,1710187857682,-1766.96,0.00015068,2]
[318348611,1710187857714,-1767.01866212,0.00015068,2]
[318348615,1710187857746,-500.0,0.00015068,2]
[318348619,1710187857777,-601.70243687,0.00015068,2]
[318348624,1710187857808,-2033.21,0.00015068,2]
[318348628,1710187857839,-2033.21,0.00015068,2]
[318348632,1710187857872,-2033.21,0.00015068,2]
[318348637,1710187857904,-2033.21,0.00015068,2]
[318348641,1710187857937,-2033.21,0.00015068,2]
[318348646,1710187857972,-2033.21,0.00015068,2]
[318348650,1710187858005,-500.0,0.00015068,2]
[318348654,1710187858038,-500.0,0.00015068,2]
[318348657,1710187858071,-2033.21,0.00015068,2]
[318348658,1710187858102,-500.0,0.00015068,2]
[318348659,1710187858134,-2033.21,0.00015068,2]
[318348668,1710187858246,-500.0,0.00015068,2]
[318348672,1710187858282,-500.0,0.00015068,2]
[318348676,1710187858320,-500.0,0.00015068,2]
[318348680,1710187858353,-500.0,0.00015068,2]
[318348685,1710187858387,-2033.21,0.00015068,2]
[318348689,1710187858421,-500.0,0.00015068,2]
[318348693,1710187858453,-503.64006763,0.00015068,2]
[318348698,1710187858487,-2033.21,0.00015068,2]
[318348702,1710187858518,-500.0,0.00015068,2]
[318348707,1710187858552,-2033.21,0.00015068,2]
[318348711,1710187858583,-500.0,0.00015068,2]
[318348715,1710187858615,-2033.21,0.00015068,2]
[318348719,1710187858647,-500.0,0.00015068,2]
[318348723,1710187858679,-2033.21,0.00015068,2]
[318348728,1710187858711,-500.0,0.00015068,2]
[318348732,1710187858739,-2033.21,0.00015068,2]
[318348736,1710187858768,-500.0,0.00015068,2]
[318348740,1710187858799,-2033.21,0.00015068,2]
[318348744,1710187858830,-500.0,0.00015068,2]
[318348749,1710187858861,-2033.21,0.00015068,2]
[318348753,1710187858893,-500.0,0.00015068,2]
[318348757,1710187858925,-2033.21,0.00015068,2]
[318348762,1710187858956,-500.0,0.00015068,2]
[318348766,1710187858987,-2033.21,0.00015068,2]
[318348770,1710187859018,-2033.21,0.00015068,2]
[318348775,1710187859049,-500.0,0.00015068,2]
[318348779,1710187859080,-2033.21,0.00015068,2]
[318348784,1710187859113,-500.0,0.00015068,2]
[318348788,1710187859145,-2033.21,0.00015068,2]
[318348792,1710187859175,-440.46468053,0.00015068,2]
[318348797,1710187859207,-2033.21,0.00015068,2]
[318348801,1710187859238,-2033.21,0.00015068,2]
[318348805,1710187859270,-2033.42090586,0.00015068,2]
[318348809,1710187859302,-500.0,0.00015068,2]
[318348813,1710187859334,-500.0,0.00015068,2]
[318348818,1710187859364,-500.0,0.00015068,2]
[318348822,1710187859398,-500.0,0.00015068,2]
[318348826,1710187859428,-500.0,0.00015068,2]
[318348831,1710187859459,-500.0,0.00015068,2]
[318348835,1710187859488,-500.0,0.00015068,2]
[318348839,1710187859519,-500.0,0.00015068,2]
[318348854,1710187859645,-500.0,0.00015068,2]
[318348858,1710187859676,-500.0,0.00015068,2]
[318348863,1710187859708,-607.3444577,0.00015068,2]
[318348867,1710187859739,-638.07,0.00015068,2]
[318348871,1710187859769,-638.07,0.00015068,2]
[318348875,1710187859800,-638.07,0.00015068,2]
[318348880,1710187859831,-638.07,0.00015068,2]
[318348884,1710187859862,-638.07,0.00015068,2]
[318348888,1710187859892,-638.07,0.00015068,2]
[318348892,1710187859924,-638.07,0.00015068,2]
[318348897,1710187859954,-638.07,0.00015068,2]
[318348901,1710187859985,-638.07,0.00015068,2]
[318348906,1710187860016,-638.07,0.00015068,2]
[318348910,1710187860047,-638.07,0.00015068,2]
[318348914,1710187860078,-638.07,0.00015068,2]
[318348919,1710187860109,-638.07,0.00015068,2]
[318348923,1710187860141,-638.07,0.00015068,2]
[318348927,1710187860171,-638.07,0.00015068,2]
[318348931,1710187860202,-638.07,0.00015068,2]
[318348936,1710187860234,-638.07,0.00015068,2]
[318348940,1710187860265,-638.07,0.00015068,2]
[318348944,1710187860299,-638.07,0.00015068,2]
[318348948,1710187860333,-638.07,0.00015068,2]
[318348952,1710187860367,-638.07,0.00015068,2]
[318348957,1710187860407,-638.07,0.00015068,2]
[318348961,1710187860441,-638.07,0.00015068,2]
[318348965,1710187860475,-638.08593512,0.00015068,2]
[318348970,1710187860512,-1063.71,0.00015068,2]
[318348974,1710187860558,-1063.71,0.00015068,2]
[318348975,1710187860602,-699.54081976,0.00015068,2]
[318349634,1710187895545,262.73004163,0.00015498,7]
[318349635,1710187915999,-1393.1871881,0.00014078,2]
[318349636,1710187916031,-539.302723,0.00014849,2]
[318349637,1710187916062,-320.44223226,0.00014998,2]
[318349638,1710187916095,-539.302723,0.00014999,2]
[318349639,1710187916125,-21404.46702134,0.00015,2]
[318349640,1710187916258,-155.99696445,0.00015067,2]
[318349641,1710187916289,-290.02695383,0.00015067,2]
[318349642,1710187916321,-155.15049598,0.00015067,2]
[318349643,1710187916354,-364.16918024,0.00015068,2]
[318349644,1710187916387,-1063.71,0.00015068,2]
[318349645,1710187916419,-1063.71,0.00015068,2]
[318349646,1710187916450,-1063.71,0.00015068,2]
[318349647,1710187916483,-1063.71,0.00015068,2]
[318349648,1710187916514,-1063.71,0.00015068,2]
[318349649,1710187916545,-1063.71,0.00015068,2]
[318349650,1710187916576,-1063.71,0.00015068,2]
[318349651,1710187916608,-1063.71,0.00015068,2]
[318349652,1710187916641,-1063.71,0.00015068,2]
[318349653,1710187916671,-1063.71,0.00015068,2]
[318349654,1710187916702,-1063.71,0.00015068,2]
[318349655,1710187916733,-1063.71,0.00015068,2]
[318349656,1710187916765,-1063.71,0.00015068,2]
[318349657,1710187916800,-1063.71,0.00015068,2]
[318349658,1710187916832,-1063.71,0.00015068,2]
[318349659,1710187916864,-1063.71,0.00015068,2]
[318349660,1710187916895,-1063.71,0.00015068,2]
[318349661,1710187916926,-1063.71,0.00015068,2]
[318349662,1710187916957,-1063.71,0.00015068,2]
[318349663,1710187916987,-1063.71,0.00015068,2]
[318349664,1710187917016,-1063.91822193,0.00015068,2]
[318349665,1710187917046,-500.0,0.00015068,2]
[318349666,1710187917077,-500.0,0.00015068,2]
[318349667,1710187917107,-155.15049598,0.00015068,2]
[318349668,1710187917140,-1186.39,0.00015068,2]
[318349669,1710187917173,-1186.39,0.00015068,2]
[318349670,1710187917205,-1186.39,0.00015068,2]
[318349671,1710187917237,-1186.39,0.00015068,2]
[318349672,1710187917268,-1186.39,0.00015068,2]
[318349673,1710187917303,-1186.39,0.00015068,2]
[318349674,1710187917334,-1186.39,0.00015068,2]
[318349675,1710187917369,-1186.39,0.00015068,2]
[318349676,1710187917402,-1186.39,0.00015068,2]
[318349677,1710187917438,-1186.39,0.00015068,2]
[318349678,1710187917471,-1186.39,0.00015068,2]
[318349679,1710187917594,-1186.39,0.00015068,2]
[318349680,1710187917626,-686.93817482,0.00015068,2]
[318349681,1710187917659,-1186.39,0.00015068,2]
[318349682,1710187917694,-1186.39,0.00015068,2]
[318349683,1710187917725,-1186.39,0.00015068,2]
[318349684,1710187917756,-1186.39,0.00015068,2]
[318349685,1710187917787,-1186.39,0.00015068,2]
[318349686,1710187917820,-1186.39,0.00015068,2]
[318349687,1710187917852,-1186.39,0.00015068,2]
[318349688,1710187917884,-1186.39,0.00015068,2]
[318349689,1710187917919,-1186.39,0.00015068,2]
[318349690,1710187917951,-1186.39,0.00015068,2]
[318349691,1710187917982,-155.15049598,0.00015068,2]
[318349692,1710187918014,-1186.39,0.00015068,2]
[318349693,1710187918047,-1186.57995248,0.00015068,2]
[318349694,1710187918078,-15952.47806843,0.00015068,2]
[318349695,1710187918119,-19025.19185566,0.00015068,2]
[318349696,1710187918150,-2000.0,0.00015176,2]
[318349697,1710187918181,-309.93651137,0.00015483,2]
[318349698,1710187918211,-872.0,0.00015485,2]
[318349699,1710187918242,-542.59844934,0.00015487,2]
[318349700,1710187918273,-83326.84229181,0.00015487,2]
[318349703,1710187983289,5000.00000001,0.000154,3]
[318349708,1710188084020,854.4335849,0.00012696,2]
[318349709,1710188096283,2071.70483052,0.00012696,2]
[318349710,1710188103574,15952.47806843,0.00012696,2]
[318349711,1710188103705,19025.19185566,0.00012696,2]
[318349712,1710188105925,155.15049598,0.00012696,2]
[318349713,1710188118293,362.21079643,0.00012696,2]
[318349714,1710188119574,15952.47806843,0.00012696,2]
[318349715,1710188121705,19025.19185566,0.00012696,2]
[318349716,1710188121928,155.15049598,0.00012696,2]
[318349717,1710188133561,15952.47806843,0.00012696,2]
[318349718,1710188137748,11332.56325276,0.00012696,2]
[318349719,1710188157597,15952.47806843,0.00012696,2]
[318349720,1710188165358,155.15049598,0.00012696,2]
[318349721,1710188173576,15952.47806843,0.00012696,2]
[318349722,1710188174413,24900.0,0.00012792,2]
[318349723,1710188189582,15952.47806843,0.00012696,2]
[318349724,1710188197388,155.15049598,0.00012696,2]
[318349725,1710188209582,4855.67257904,0.00012696,2]
[318349726,1710188209614,6629.0670572,0.00012696,2]
[318349727,1710188209645,4467.73843219,0.00012696,2]
[318349728,1710188215349,238.23223639,0.00012696,2]
[318349729,1710188225592,15952.47806843,0.00012696,2]
[318349730,1710188245571,4341.55126299,0.00012696,2]
[318349757,1710188301657,250.0,0.00011695,2]
[318349770,1710188307813,-155.15049598,0.00012562,2]
[318349771,1710188307834,-191.57920346,0.00012563,2]
[318349772,1710188307854,-326.46604944,0.00012564,2]
[318349773,1710188307875,-155.15049598,0.00012564,2]
[318349774,1710188307895,-624.4418368,0.00012564,2]
[318349775,1710188307916,-306.21191834,0.00012565,2]
[318349778,1710188378976,-558.48918801,0.00012561,2]
[318349779,1710188379002,-320.44223226,0.00012561,2]
[318349780,1710188379022,-499.52179918,0.00012562,2]
[318349781,1710188379042,-155.15049598,0.00012563,2]
[318349782,1710188379063,-539.302723,0.00012564,2]
[318349783,1710188379085,-1081.09653886,0.00012564,2]
[318349784,1710188379111,-47665.43016858,0.00012564,2]
[318349785,1710188379131,-15.78388233,0.00012565,2]
[318349786,1710188379152,-15907.7829718,0.00012565,2]
[318349787,1710188391367,155.99696445,0.00012434,2]
[318349788,1710188399482,477.14629665,0.00012432,2]
[318349789,1710188407399,477.14629665,0.00012432,2]
[318349790,1710188415516,367.23359273,0.00012431,2]
[318349791,1710188423380,367.23359273,0.00012431,2]
[318349792,1710188431571,367.23359273,0.00012431,2]
[318349793,1710188439362,310.30099196,0.0001243,2]
[318349794,1710188444699,11342.3045113,0.00012431,2]
[318349795,1710188447981,155.99696445,0.00012429,2]
[318349796,1710188455832,616.22543347,0.00012427,2]
[318349798,1710188464180,321.99580067,0.00012426,2]
[318349799,1710188471994,173.9284541,0.00012425,2]
[318349800,1710188476927,3550.6187287,0.00012109,2]
[318349801,1710188519578,-616.22543347,0.00012546,2]
[318349802,1710188519600,-3145.34600817,0.00012546,2]
[318349803,1710188519620,-155.15049598,0.00012547,2]
[318349804,1710188519642,-155.15049598,0.00012547,2]
[318349805,1710188519664,-2115.55183871,0.00012547,2]
[318349806,1710188519686,-155.15049598,0.00012548,2]
[318349807,1710188519707,-155.15049598,0.00012548,2]
[318349808,1710188519728,-186.73102555,0.00012548,2]
[318349809,1710188519748,-155.99696445,0.00012548,2]
[318349810,1710188519768,-596.30466146,0.00012549,2]
[318349811,1710188519790,-205.53548499,0.0001255,2]
[318349812,1710188519810,-310.22959089,0.00012551,2]
[318349813,1710188519830,-155.15049598,0.00012551,2]
[318349814,1710188519850,-155.15049598,0.00012551,2]
[318349815,1710188519871,-155.15049598,0.00012551,2]
[318349816,1710188519891,-20511.41719497,0.00012551,2]
[318349817,1710188519912,-404.59380981,0.00012552,2]
[318349818,1710188519933,-355.01451567,0.00012552,2]
[318349819,1710188541818,-2000000.0,0.00023463,60]
[318349820,1710188547244,-2000000.0,0.00023463,60]
[318349822,1710188593083,-3499.43716363,0.00012543,2]
[318349823,1710188593107,-212.08309675,0.00012544,2]
[318349824,1710188593129,-321.99580067,0.00012544,2]
[318349825,1710188593151,-1951.90972773,0.00012544,2]
[318349826,1710188593173,-704.15336957,0.00012545,2]
[318349827,1710188593195,-155.15049598,0.00012546,2]
[318349828,1710188593218,-1119.67774924,0.00012552,2]
[318349829,1710188593243,-35.59259643,0.00012553,2]
[318349830,1710188792813,-558.48918801,0.00012529,2]
[318349831,1710188792834,-624.4418368,0.0001253,2]
[318349832,1710188792859,-320.44223226,0.0001253,2]
[318349833,1710188792881,-8000.0,0.0001253,2]
[318349834,1710188792902,-155.15049598,0.00012531,2]
[318349835,1710188792936,-1081.09653886,0.00012531,2]
[318349836,1710188792960,-326.46604944,0.00012532,2]
[318349837,1710188793107,-191.57920346,0.00012532,2]
[318349838,1710188793131,-4003.33445519,0.00012533,2]
[318349839,1710188865829,2022.6,0.000125,2]
[318349913,1710189032042,-205.53548499,0.00012516,2]
[318349915,1710189032051,-212.08309675,0.00012516,2]
[318349917,1710189032060,-155.99696445,0.00012516,2]
[318349919,1710189032069,-155.15049598,0.00012517,2]
[318349921,1710189032078,-155.15049598,0.00012517,2]
[318349923,1710189032087,-155.15049598,0.00012517,2]
[318349925,1710189032097,-616.22543347,0.00012518,2]
[318349927,1710189032107,-300.0,0.00012531,2]
[318349929,1710189032116,-20511.41719497,0.00012532,2]
[318349931,1710189032126,-20896.66554481,0.00012533,2]
[318349933,1710189032135,-326.46604944,0.00013687,2]
[318349935,1710189032144,-1081.09653886,0.00013687,2]
[318349937,1710189032153,-320.44223226,0.00013688,2]
[318349939,1710189032162,-624.4418368,0.00013688,2]
[318349941,1710189032171,-191.57920346,0.00013688,2]
[318349943,1710189032180,-27309.99998308,0.00013689,2]
[318349945,1710189032189,-401.10924336,0.00013699,2]
[318349947,1710189032198,-1661.2379899,0.00013699,2]
[318349949,1710189032208,-700.609196,0.00013699,2]
[318349951,1710189032217,-450.0,0.00013784,2]
[318349953,1710189032226,-186.9741541,0.000149,2]
[318349955,1710189032235,-153.0,0.00014941,2]
[318349957,1710189032244,-155.15049598,0.00015,2]
[318349959,1710189032253,-155.33165522,0.00015068,2]
[318349961,1710189032262,-500.0,0.00015068,2]
[318349963,1710189032271,-154.94148642,0.00015068,2]
[318349965,1710189032280,-500.0,0.00015068,2]
[318349967,1710189032289,-500.0,0.00015068,2]
[318349969,1710189032299,-500.0,0.00015068,2]
[318349971,1710189032308,-500.0,0.00015068,2]
[318349973,1710189032316,-500.0,0.00015068,2]
[318349975,1710189032326,-500.0,0.00015068,2]